fUST/lending_fUST_20240319
["ID","MTS","AMOUNT","RATE_DAILY","PERIOD"]
[319503649,1710805512904,160.62963939,0.0001895,2]
[319503650,1710805520724,160.62963939,0.0001895,2]
[319503651,1710805528776,336.78954129,0.00018949,2]
[319503652,1710805536582,336.78954129,0.00018949,2]
[319503653,1710805544614,336.78954129,0.00018949,2]
[319503654,1710805553508,155.01240099,0.00018948,2]
[319503655,1710805565124,5808.90019188,0.0001895,2]
[319503656,1710805569600,160.62963939,0.00018947,2]
[319503657,1710805584631,16566.1481894,0.00018667,2]
[319503728,1710805831937,-160.62963939,0.00019127,2]
[319503729,1710805831947,-155.01395126,0.00019128,2]
[319503730,1710805831956,-336.78954129,0.00019129,2]
[319503731,1710805831965,-200.56398846,0.00019548,2]
[319503732,1710805831975,-18194.14652893,0.00019647,2]
[319503733,1710805831987,-29520.05556945,0.00019647,2]
[319503734,1710805831997,-192.575343,0.00019826,2]
[319503735,1710805832007,-196.499369,0.00019826,2]
[319503736,1710805832017,-2733.491579,0.00020001,2]
[319503737,1710805832027,-155.0,0.00020548,2]
[319503738,1710805832037,-195.73604874,0.00020578,2]
[319503739,1710805832046,-201.2032644,0.000206,2]
[319503740,1710805832055,-1711.67721037,0.00020788,2]
[319503741,1710805832065,-171.05068638,0.00020789,2]
[319503742,1710805832074,-1646.04119829,0.0002079,2]
[319503743,1710805832084,-451.34471758,0.00020897,2]
[319503744,1710805832093,-2602.59,0.00020897,2]
[319503745,1710805832102,-2602.59,0.00020897,2]
[319503746,1710805832112,-2602.59,0.00020897,2]
[319503747,1710805832122,-547.75457667,0.00020897,2]
[319503748,1710805832131,-501.57910099,0.00020897,2]
[319503749,1710805832140,-500.0,0.00020897,2]
[319503750,1710805832149,-500.0,0.00020897,2]
[319503751,1710805832159,-500.0,0.00020897,2]
[319503752,1710805832168,-500.0,0.00020897,2]
[319503753,1710805832177,-500.67143048,0.00020897,2]
[319503754,1710805832186,-500.0,0.00020897,2]
[319503755,1710805832195,-531.63329424,0.00020897,2]
[319503756,1710805832204,-233.77239255,0.00020897,2]
[319503757,1710805832213,-500.0,0.00020897,2]
[319503758,1710805832223,-500.0,0.00020897,2]
[319503759,1710805832231,-500.0,0.00020897,2]
[319503760,1710805832240,-500.0,0.00020897,2]
[319503761,1710805832249,-500.0,0.00020897,2]
[319503762,1710805832259,-500.0,0.00020897,2]
[319503763,1710805832268,-500.0,0.00020897,2]
[319503764,1710805832277,-272.32427809,0.00020897,2]
[319503765,1710805832286,-500.0,0.00020897,2]
[319503766,1710805832295,-500.0,0.00020897,2]
[319503767,1710805832305,-500.0,0.00020897,2]
[319503768,1710805832316,-14313.85392128,0.00020898,2]
[319503769,1710805832329,-4919.37484713,0.00020898,2]
[319503770,1710805832641,-788.3,0.00020898,2]
[319503819,1710805838017,-585.16079419,0.00020898,2]
[319503821,1710805838029,-21194.67285033,0.00020898,2]
[319503823,1710805838041,-13931.27885623,0.00020898,2]
[319503825,1710805838051,-1000.0,0.00020899,2]
[319503827,1710805838061,-200.56398846,0.00020899,2]
[319503829,1710805838070,-265.17207226,0.00020977,2]
[319503831,1710805838080,-233.57474595,0.00020996,2]
[319503833,1710805838091,-445.49528703,0.00020996,2]
[319503835,1710805838100,-210.70112283,0.00020996,2]
[319503837,1710805838109,-308.00001,0.00020996,2]
[319503839,1710805838118,-500.0,0.00020997,2]
[319503841,1710805838128,-500.0,0.00020997,2]
[319503843,1710805838137,-503.63419139,0.00020997,2]
[319503845,1710805838148,-500.0,0.00020997,2]
[319503847,1710805838157,-319.31948979,0.00020997,2]
[319503849,1710805838166,-500.0,0.00020997,2]
[319503851,1710805838176,-500.0,0.00020997,2]
[319503853,1710805838186,-500.0,0.00020997,2]
[319503854,1710805838195,-500.0,0.00020997,2]
[319503856,1710805838204,-500.0,0.00020997,2]
[319503858,1710805838215,-500.0,0.00020997,2]
[319503861,1710805838225,-500.0,0.00020997,2]
[319503863,1710805838235,-500.0,0.00020997,2]
[319503865,1710805838245,-303.2013292,0.00020997,2]
[319503867,1710805838254,-500.0,0.00020997,2]
[319503869,1710805838264,-500.0,0.00020997,2]
[319503871,1710805838274,-500.0,0.00020997,2]
[319503873,1710805838283,-500.0,0.00020997,2]
[319503875,1710805838293,-500.0,0.00020997,2]
[319503877,1710805838303,-500.0,0.00020997,2]
[319503879,1710805838314,-500.0,0.00020997,2]
[319503881,1710805838325,-500.0,0.00020997,2]
[319503883,1710805838335,-500.0,0.00020997,2]
[319503885,1710805838345,-500.0,0.00020997,2]
[319503887,1710805838355,-500.0,0.00020997,2]
[319503889,1710805838364,-543.45987116,0.00020997,2]
[319503891,1710805838373,-500.0,0.00020997,2]
[319503893,1710805838383,-500.0,0.00020997,2]
[319503895,1710805838393,-500.0,0.00020997,2]
[319503897,1710805838403,-500.0,0.00020997,2]
[319503899,1710805838413,-500.0,0.00020997,2]
[319503901,1710805838423,-500.0,0.00020997,2]
[319503903,1710805838432,-500.0,0.00020997,2]
[319503904,1710805838442,-500.0,0.00020997,2]
[319503905,1710805838452,-500.0,0.00020997,2]
[319503906,1710805838461,-500.0,0.00020997,2]
[319503907,1710805838470,-500.0,0.00020997,2]
[319503908,1710805838480,-500.0,0.00020997,2]
[319503910,1710805838489,-500.0,0.00020997,2]
[319503911,1710805838499,-500.0,0.00020997,2]
[319503912,1710805838510,-500.0,0.00020997,2]
[319503914,1710805838519,-500.0,0.00020997,2]
[319503916,1710805838528,-500.0,0.00020997,2]
[319503918,1710805838538,-500.0,0.00020997,2]
[319503920,1710805838547,-500.0,0.00020997,2]
[319503921,1710805838556,-500.0,0.00020997,2]
[319503923,1710805838565,-414.05243468,0.00020997,2]
[319503925,1710805838576,-500.0,0.00020997,2]
[319503927,1710805838586,-500.0,0.00020997,2]
[319503929,1710805838596,-500.0,0.00020997,2]
[319503931,1710805838605,-273.79710277,0.00020997,2]
[319503937,1710805838616,-189.54299034,0.00020997,2]
[319503938,1710805838769,-500.0,0.00020997,2]
[319503939,1710805838779,-500.0,0.00020997,2]
[319503940,1710805838789,-500.0,0.00020997,2]
[319503941,1710805838798,-500.0,0.00020997,2]
[319503942,1710805838807,-500.0,0.00020997,2]
[319503943,1710805838817,-500.0,0.00020997,2]
[319503944,1710805838826,-500.0,0.00020997,2]
[319503945,1710805838835,-251.42385898,0.00020997,2]
[319503946,1710805838848,-2602.59,0.00020997,2]
[319503947,1710805838857,-2602.59,0.00020997,2]
[319503948,1710805838867,-500.0,0.00020997,2]
[319503949,1710805838877,-500.0,0.00020997,2]
[319503950,1710805838887,-500.0,0.00020997,2]
[319503951,1710805838897,-500.0,0.00020997,2]
[319503952,1710805838906,-500.0,0.00020997,2]
[319503953,1710805838916,-500.0,0.00020997,2]
[319503954,1710805838926,-500.0,0.00020997,2]
[319503955,1710805838935,-501.57047566,0.00020997,2]
[319503956,1710805838945,-500.0,0.00020997,2]
[319503957,1710805838955,-500.0,0.00020997,2]
[319503958,1710805838964,-500.0,0.00020997,2]
[319503959,1710805838973,-500.0,0.00020997,2]
[319503960,1710805838982,-500.0,0.00020997,2]
[319503961,1710805838991,-501.25773633,0.00020997,2]
[319503962,1710805839001,-252.37305662,0.00020997,2]
[319503963,1710805839010,-500.0,0.00020997,2]
[319503964,1710805839019,-500.0,0.00020997,2]
[319503965,1710805839027,-500.0,0.00020997,2]
[319503966,1710805839037,-500.0,0.00020997,2]
[319503967,1710805839046,-469.50912641,0.00020998,2]
[319503968,1710805839054,-155.01085076,0.00020998,2]
[319503969,1710805839063,-8402.68175686,0.00020998,2]
[319503970,1710805839072,-806.52923668,0.00020998,2]
[319503971,1710805839081,-179.76557553,0.00020998,2]
[319503972,1710805839091,-404.89614019,0.00020998,2]
[319503973,1710805839100,-206.55739408,0.00020998,2]
[319503974,1710805839109,-3054.98258429,0.00020998,2]
[319503975,1710805839118,-322.18623575,0.00020998,2]
[319503976,1710805839127,-834.30112629,0.00020998,2]
[319503977,1710805839136,-155.35642146,0.00020998,2]
[319503978,1710805839145,-502.20946896,0.00020998,2]
[319503979,1710805839154,-500.0,0.00020998,2]
[319503980,1710805839162,-500.0,0.00020998,2]
[319503981,1710805839171,-500.0,0.00020998,2]
[319503982,1710805839180,-500.0,0.00020998,2]
[319503983,1710805839189,-500.0,0.00020998,2]
[319503984,1710805839198,-535.99948237,0.00020998,2]
[319503985,1710805839206,-500.0,0.00020998,2]
[319503986,1710805839215,-500.0,0.00020998,2]
[319503987,1710805839224,-500.0,0.00020998,2]
[319503988,1710805839233,-500.0,0.00020998,2]
[319503989,1710805839242,-544.61350868,0.00020998,2]
[319503990,1710805839252,-2602.59,0.00020998,2]
[319503991,1710805839261,-500.0,0.00020998,2]
[319503992,1710805839269,-500.0,0.00020998,2]
[319503993,1710805839278,-500.0,0.00020999,2]
[319503994,1710805839288,-501.07478568,0.00020999,2]
[319503995,1710805839297,-2602.59,0.00020999,2]
[319503996,1710805839308,-2602.59,0.00020999,2]
[319503997,1710805839318,-2602.59,0.00020999,2]
[319503998,1710805839330,-2602.59,0.00020999,2]
[319503999,1710805839340,-2602.59,0.00020999,2]
[319504000,1710805839350,-2602.59,0.00020999,2]
[319504001,1710805839359,-2602.59,0.00020999,2]
[319504002,1710805839368,-2602.59,0.00020999,2]
[319504003,1710805839378,-2602.59,0.00020999,2]
[319504004,1710805839387,-2602.59,0.00020999,2]
[319504005,1710805839397,-2602.59,0.00020999,2]
[319504006,1710805839407,-2602.59,0.00020999,2]
[319504007,1710805839416,-2602.59,0.00020999,2]
[319504008,1710805839426,-2602.59,0.00020999,2]
[319504009,1710805839435,-2602.59,0.00020999,2]
[319504010,1710805839444,-2602.59,0.00020999,2]
[319504011,1710805839453,-871.32574908,0.00020999,2]
[319504012,1710805839467,-1245.7596935,0.00020999,2]
[319504035,1710805841935,-899.70238081,0.000209,2]
[319504037,1710805841944,-485.50455742,0.00020999,2]
[319504039,1710805841954,-2602.79830492,0.00020999,2]
[319504041,1710805841963,-500.0,0.00020999,2]
[319504043,1710805841972,-500.0,0.00020999,2]
[319504044,1710805841981,-500.0,0.00020999,2]
[319504045,1710805841990,-500.0,0.00020999,2]
[319504046,1710805842000,-500.0,0.00020999,2]
[319504047,1710805842010,-500.0,0.00020999,2]
[319504048,1710805842020,-500.0,0.00020999,2]
[319504049,1710805842029,-500.0,0.00020999,2]
[319504050,1710805842039,-500.0,0.00020999,2]
[319504051,1710805842049,-500.0,0.00020999,2]
[319504052,1710805842059,-500.0,0.00020999,2]
[319504053,1710805842069,-500.0,0.00020999,2]
[319504054,1710805842079,-500.0,0.00020999,2]
[319504055,1710805842088,-500.0,0.00020999,2]
[319504057,1710805842100,-481.61,0.00020999,2]
[319504059,1710805842110,-413.82,0.00020999,2]
[319504061,1710805842120,-49995.59903394,0.00021,5]
[319504063,1710805842132,-258196.90581585,0.00021,5]
[319504066,1710805842144,-65000.0,0.00021,5]
[319504067,1710805842155,-13049.99999999,0.00021,5]
[319504068,1710805842166,-272.7,0.00021,5]
[319504069,1710805842180,-73675.95482211,0.00021,5]
[319504070,1710805842193,-67283.54918522,0.00021,5]
[319504071,1710805842207,-42223.19372889,0.00021,5]
[319504072,1710805842221,-54207.40200558,0.00021,5]
[319504073,1710805842234,-4680.50000001,0.00021,5]
[319504126,1710805843065,-2022.18347459,0.00021,5]
[319504130,1710805843084,-459692.4096236,0.00021,5]
[319504131,1710805843100,-90663.52499664,0.00021,5]
[319504133,1710805843112,-19729.06999998,0.00021,5]
[319504410,1710805846004,-899.70238072,0.00020958,2]
[319504411,1710805846013,-20241.41305736,0.00021,5]
[319504412,1710805846025,-70000.0,0.00021,5]
[319504413,1710805846036,-16404.01639742,0.00021,5]
[319504414,1710805846048,-20959.99999985,0.00021,5]
[319504465,1710805864972,2052.49750896,0.0001848,2]
[319504673,1710807040187,-2496.3911864,0.00019956,2]
[319504674,1710807040197,-187.08188204,0.0001998,10]
[319504675,1710807040212,-8251.65932659,0.0001998,10]
[319504676,1710807040221,-155.0,0.00020548,2]
[319504677,1710807040231,-408.16869741,0.00020855,3]
[319504691,1710807043229,-14616.33433429,0.00020855,3]
[319504692,1710807043239,-500.0,0.00020897,2]
[319504693,1710807043248,-370.80290693,0.00020897,2]
[319504694,1710807043257,-500.0,0.00020897,2]
[319504695,1710807043267,-500.0,0.00020897,2]
[319504696,1710807043276,-500.0,0.00020897,2]
[319504697,1710807043285,-500.0,0.00020897,2]
[319504698,1710807043295,-416.35116678,0.00020897,2]
[319504699,1710807043304,-592.19301227,0.00020897,2]
[319504700,1710807043313,-174.49018805,0.00020897,2]
[319504701,1710807043325,-500.0,0.00020897,2]
[319504702,1710807043334,-442.66123111,0.00020897,2]
[319504703,1710807043343,-420.99032258,0.00020897,2]
[319504704,1710807043353,-513.6112793,0.00020897,2]
[319504705,1710807043362,-500.0,0.00020897,2]
[319504706,1710807043372,-500.0,0.00020897,2]
[319504707,1710807043381,-1000.0,0.000209,2]
[319504708,1710807043400,-719.76190463,0.000209,2]
[319504709,1710807043411,-13868.88811579,0.00020951,2]
[319504710,1710807043421,-4268.10266479,0.00020952,2]
[319504711,1710807043431,-719.76190457,0.00020959,2]
[319504712,1710807043440,-500.0,0.00020997,2]
[319504713,1710807043450,-500.0,0.00020997,2]
[319504714,1710807043459,-221.54698586,0.00020998,2]
[319504715,1710807043468,-198.25647604,0.00020998,2]
[319504716,1710807043477,-243.48859123,0.00020998,2]
[319504717,1710807043487,-376.74770808,0.00020998,2]
[319504718,1710807043496,-393.13012416,0.00020998,2]
[319504719,1710807043506,-3947.02796886,0.00020998,2]
[319504720,1710807043515,-500.0,0.00020998,2]
[319504721,1710807043524,-155.36905736,0.00020998,2]
[319504722,1710807043533,-335.39226334,0.00020999,2]
[319504723,1710807043542,-385.60473519,0.00020999,2]
[319504724,1710807043552,-295.46690159,0.00020999,2]
[319504725,1710807043561,-247.81351991,0.00020999,2]
[319504726,1710807043570,-500.0,0.00020999,2]
[319504727,1710807043582,-574.4166135,0.00020999,2]
[319504728,1710807043591,-500.0,0.00020999,2]
[319504729,1710807043601,-500.0,0.00020999,2]
[319504730,1710807043611,-500.0,0.00020999,2]
[319504731,1710807043620,-500.0,0.00020999,2]
[319504732,1710807043631,-500.0,0.00020999,2]
[319504733,1710807043640,-500.0,0.00020999,2]
[319504734,1710807043650,-500.0,0.00020999,2]
[319504735,1710807043659,-372.46790373,0.00020999,2]
[319504736,1710807043669,-272218.58493251,0.00021,5]
[319504737,1710807043683,-85512.38515517,0.00021,5]
[319504738,1710807043695,-2000.0,0.00021,5]
[319505084,1710808238369,-658.55817752,0.0001998,10]
[319505086,1710808238382,-1024.25,0.0001998,10]
[319505127,1710808243393,-216.56707905,0.0001998,10]
[319505128,1710808243403,-155.0,0.00020548,2]
[319505129,1710808243413,-201.82837207,0.000209,4]
[319505130,1710808243422,-172.06705318,0.000209,2]
[319505131,1710808243432,-575.80952371,0.000209,2]
[319505132,1710808243441,-575.80952365,0.0002096,2]
[319505133,1710808243451,-5048.21472693,0.00020999,2]
[319505134,1710808243461,-500.57673545,0.00020999,2]
[319505135,1710808243471,-641.25536769,0.00020999,2]
[319505136,1710808243480,-221.06451829,0.00020999,2]
[319505137,1710808243489,-500.70699595,0.00020999,2]
[319505138,1710808243498,-500.0,0.00020999,2]
[319505139,1710808243507,-500.0,0.00020999,2]
[319505140,1710808243517,-500.0,0.00020999,2]
[319505142,1710808243526,-501.198018,0.00020999,2]
[319505144,1710808243535,-500.0,0.00020999,2]
[319505146,1710808243544,-500.0,0.00020999,2]
[319505148,1710808243552,-500.0,0.00020999,2]
[319505149,1710808243561,-500.0,0.00020999,2]
[319505150,1710808243570,-500.0,0.00020999,2]
[319505151,1710808243580,-444.76,0.00020999,2]
[319505152,1710808243589,-500.0,0.00020999,2]
[319505153,1710808243599,-51725.96516952,0.00021,5]
[319505241,1710809432670,-155.0,0.00020548,2]
[319505243,1710809432680,-562.54315312,0.00020747,2]
[319505250,1710809432742,-437.45684688,0.00020747,2]
[319505253,1710809432751,-698.0786816,0.00020765,2]
[319505256,1710809432760,-1000.0,0.00020784,2]
[319505259,1710809432770,-1000.0,0.00020842,2]
[319505262,1710809432779,-1000.0,0.000209,2]
[319505264,1710809432788,-460.64761892,0.000209,2]
[319505266,1710809432797,-459.20355537,0.00020905,2]
[319505268,1710809432806,-1000.0,0.00020912,2]
[319505269,1710809432815,-1000.0,0.00020935,2]
[319505272,1710809432824,-460.64761892,0.0002096,2]
[319505274,1710809432834,-692.96567832,0.00020994,2]
[319505276,1710809432846,-307.03432168,0.00020994,2]
[319505278,1710809432855,-261.01390562,0.00020998,2]
[319505280,1710809432864,-290.83022267,0.00020998,2]
[319505336,1710809438570,-134.89265392,0.00020998,2]
[319505337,1710809438581,-167.54372352,0.00020998,2]
[319505338,1710809438590,-633.5779868,0.00020999,2]
[319505339,1710809438599,-11955.47112079,0.00020999,2]
[319505340,1710809438611,-2468.50728725,0.00020999,2]
[319505341,1710809438624,-1333.4190839,0.00020999,2]
[319505342,1710809438647,-314.8543668,0.00020999,2]
[319505362,1710809440685,-64621.71130929,0.00020999,2]
[319505378,1710809443688,-205598.19343037,0.00020999,2]
[319505379,1710809443735,-459.1116792,0.00020999,2]
[319505413,1710809639442,5224.36082598,0.00015498,2]
[319505426,1710809739150,1346.47550903,0.000189,2]
[319505433,1710809851255,436.0,0.00025,120]
[319505478,1710810040671,897.65033936,0.000189,2]
[319505492,1710810342287,598.43355957,0.000189,2]
[319505518,1710810632981,-558.361987,0.00019818,2]
[319505520,1710810632991,-4202.27458571,0.0002,2]
[319505522,1710810633000,-277.224393,0.00020019,2]
[319505524,1710810633015,-281.137594,0.00020019,2]
[319505526,1710810633024,-277.224393,0.00020019,2]
[319505528,1710810633033,-281.137594,0.00020019,2]
[319505529,1710810633043,-1000.4678621,0.000205,2]
[319505532,1710810633052,-155.0,0.00020548,2]
[319505534,1710810633062,-572.0,0.000208,2]
[319505536,1710810633071,-172.06705318,0.00020899,2]
[319505538,1710810633081,-1000.0,0.000209,2]
[319505540,1710810633091,-958.12571358,0.000209,2]
[319505543,1710810633101,-368.51809519,0.000209,2]
[319505547,1710810633110,-368.51809513,0.0002096,2]
[319505549,1710810633120,-321.93735775,0.00020998,2]
[319505551,1710810633130,-1883.30131368,0.00020998,2]
[319505552,1710810633139,-294.77831715,0.00020998,2]
[319505554,1710810633149,-191.54405702,0.00020998,2]
[319505556,1710810633159,-2137.23268489,0.00020998,2]
[319505559,1710810633169,-2020.56022276,0.00020998,2]
[319505560,1710810633179,-2744.63960965,0.00020998,2]
[319505562,1710810633188,-500.0,0.00020998,2]
[319505564,1710810633199,-746.57804742,0.00020998,2]
[319505567,1710810633210,-325.52774236,0.00020998,2]
[319505569,1710810633221,-269.42483516,0.00020998,2]
[319505570,1710810633231,-8493.12279071,0.00020999,2]
[319505706,1710810638903,-5520.84294421,0.00019817,2]
[319505709,1710810638914,-10889.34472467,0.00020999,2]
[319505711,1710810638927,-10566.67635835,0.00020999,2]
[319505713,1710810638940,-23000.0,0.00020999,2]
[319505716,1710810638952,-1222.68419941,0.00020999,2]
[319505719,1710810638972,-6642.86963032,0.00020999,2]
[319505792,1710810643618,398.95570638,0.000189,2]
[319505905,1710810944855,265.97047092,0.000189,2]
[319505906,1710811246155,177.31364728,0.000189,2]
[319505907,1710811377998,1476.18794127,0.00018913,2]
[319505908,1710811386497,3502.87779948,0.00018912,2]
[319505909,1710811394758,385.60186061,0.00018912,2]
[319505910,1710811418499,331.56393228,0.00018911,2]
[319505911,1710811426340,190.38496831,0.0001891,2]
[319505917,1710811547328,150.0,0.000189,2]
[319506333,1710811838137,-1476.43172636,0.0001908,2]
[319506334,1710811838148,-590.17725568,0.00019081,2]
[319506335,1710811838159,-155.0,0.00019082,2]
[319506336,1710811838169,-3503.44419501,0.00019082,2]
[319506337,1710811838178,-207.814033,0.000193,2]
[319506338,1710811838187,-276.0,0.00019437,2]
[319506339,1710811838196,-6550.370937,0.00019438,2]
[319506340,1710811838205,-165.726589,0.00020019,2]
[319506341,1710811838215,-155.0,0.00020548,2]
[319506342,1710811838224,-0.41202206,0.00020898,2]
[319506343,1710811838235,-220.68459859,0.00020898,2]
[319506344,1710811838244,-706.06688898,0.000209,2]
[319506345,1710811838254,-294.81447614,0.000209,2]
[319506347,1710811838264,-1000.0,0.000209,2]
[319506349,1710811838273,-294.8144761,0.00020962,2]
[319506351,1710811838282,-4854.0042581,0.00020997,3]
[319506353,1710811838291,-500.0,0.00020997,2]
[319506355,1710811838300,-852.59402975,0.00020997,2]
[319506357,1710811838309,-7166.92799467,0.00020998,2]
[319506359,1710811838319,-208.32375667,0.00020998,2]
[319506361,1710811838328,-206.76302118,0.00020998,2]
[319506363,1710811838338,-1645.23149251,0.00020998,2]
[319506365,1710811838347,-360.97154893,0.00020998,2]
[319506367,1710811838359,-20.90718297,0.00020998,2]
[319506369,1710811838370,-361.23624828,0.00020998,2]
[319506371,1710811838384,-1553.71413347,0.00020998,2]
[319506372,1710811838393,-165.8190204,0.00020998,2]
[319506374,1710811838403,-269.39073036,0.00020998,2]
[319506376,1710811838412,-264.77858072,0.00020998,2]
[319506377,1710811838422,-155.53372428,0.00020998,2]
[319506379,1710811838430,-201.93069212,0.00020998,2]
[319506381,1710811838441,-269.55498776,0.00020998,2]
[319506383,1710811838450,-155.04961588,0.00020998,2]
[319506385,1710811838460,-180.8138966,0.00020998,2]
[319506387,1710811838469,-989.39036897,0.00020998,2]
[319506389,1710811838477,-192.12704116,0.00020998,2]
[319506391,1710811838487,-18.69575462,0.00020998,2]
[319507025,1710811846092,-270.54721468,0.00020998,2]
[319507027,1710811846102,-61.95278532,0.00020998,2]
[319507281,1710811848714,150.0,0.000189,2]
[319507472,1710812391148,155.0,0.000189,2]
[319507473,1710812451514,1241.12671771,0.000189,2]
[319507474,1710812546284,636.53597827,0.00018879,2]
[319507477,1710812615852,368.021884,0.00018966,2]
[319507478,1710812666633,24900.0,0.00018866,2]
[319507479,1710812752823,827.4178118,0.000189,2]
[319507525,1710812972747,326.14837322,0.00018841,2]
[319507591,1710813032273,-405.07209328,0.00019025,2]
[319507593,1710813032282,-478.94486566,0.00019025,2]
[319507664,1710813038643,-746.80138148,0.00019024,2]
[319507666,1710813038654,-111.23239002,0.00019025,2]
[319507669,1710813038664,-155.0,0.00019026,2]
[319507671,1710813038673,-3149.29011079,0.00019026,2]
[319507673,1710813038683,-1954.1833345,0.00019027,2]
[319507675,1710813038692,-304.6268618,0.00019027,2]
[319507677,1710813038701,-493.37786692,0.00019028,2]
[319507679,1710813038709,-187.5384845,0.00019029,2]
[319507681,1710813038718,-1570.60595844,0.00019029,2]
[319507683,1710813038728,-217.84134126,0.00019029,2]
[319507685,1710813038739,-2569.72453173,0.00019029,2]
[319507687,1710813038750,-715.87832202,0.00019029,2]
[319507689,1710813038765,-1303.7394883,0.00019086,2]
[319507691,1710813038774,-250.0,0.0001914,2]
[319507693,1710813038783,-209.506052,0.00019178,2]
[319507695,1710813038792,-193.202417,0.00019178,2]
[319507697,1710813038801,-522.52680238,0.00019349,2]
[319507699,1710813038810,-9579.70978841,0.00019355,2]
[319507701,1710813038820,-392.6652323,0.00019635,2]
[319508117,1710813043310,-325.62849554,0.00019024,2]
[319508118,1710813043321,-572.77105365,0.00019635,2]
[319508119,1710813043370,-1034.56371405,0.00019635,2]
[319508120,1710813043379,-169.00331626,0.00019902,2]
[319508121,1710813043388,-209.506052,0.000203,2]
[319508122,1710813043397,-2041.252655,0.0002037,2]
[319508123,1710813043406,-155.0,0.00020548,2]
[319508124,1710813043416,-163.71336758,0.000208,2]
[319508125,1710813043425,-163.71336755,0.00020833,2]
[319508126,1710813043439,-163.71336755,0.00020866,2]
[319508127,1710813043448,-1000.0,0.00020899,2]
[319508128,1710813043457,-500.0,0.00020899,2]
[319508129,1710813043466,-163.71336755,0.00020899,2]
[319508130,1710813043477,-17563.93446741,0.000209,2]
[319508131,1710813043487,-236.70082461,0.000209,2]
[319508132,1710813043495,-236.70082459,0.00020966,2]
[319508133,1710813043505,-155.3744406,0.00020977,2]
[319508134,1710813043516,-5014.43462158,0.00020977,2]
[319508135,1710813043526,-235.3038,0.00020979,2]
[319508136,1710813043536,-170.7532008,0.00020996,2]
[319508137,1710813043545,-733.41747104,0.00020997,2]
[319508138,1710813043554,-155.25628828,0.00020997,2]
[319508139,1710813043563,-500.0,0.00020997,2]
[319508140,1710813043572,-575.58167219,0.00020997,2]
[319508141,1710813043582,-500.0,0.00020997,2]
[319508142,1710813043591,-500.0,0.00020997,2]
[319508143,1710813043599,-500.0,0.00020997,2]
[319508144,1710813043608,-500.0,0.00020997,2]
[319508145,1710813043618,-558.73367308,0.00020997,2]
[319508146,1710813043628,-500.0,0.00020997,2]
[319508147,1710813043637,-500.0,0.00020997,2]
[319508148,1710813043647,-500.0,0.00020997,2]
[319508149,1710813043656,-240.71186375,0.00020997,2]
[319508150,1710813043665,-504.07848705,0.00020997,2]
[319508151,1710813043675,-501.75781971,0.00020997,2]
[319508152,1710813043685,-500.0,0.00020997,2]
[319508154,1710813043694,-166.58558901,0.00020997,2]
[319508156,1710813043703,-500.0,0.00020997,2]
[319508158,1710813043712,-627.65839439,0.00020997,2]
[319508160,1710813043721,-549.27,0.00020997,2]
[319508161,1710813043730,-549.27,0.00020997,2]
[319508162,1710813043739,-500.0,0.00020997,2]
[319508164,1710813043748,-502.26594523,0.00020997,2]
[319508166,1710813043757,-500.0,0.00020997,2]
[319508167,1710813043768,-612.25857027,0.00020997,2]
[319508169,1710813043777,-560.04654903,0.00020997,2]
[319508171,1710813043786,-501.37853065,0.00020997,2]
[319508173,1710813043795,-500.0,0.00020997,2]
[319508175,1710813043804,-500.0,0.00020997,2]
[319508177,1710813043814,-500.0,0.00020997,2]
[319508179,1710813043822,-500.0,0.00020997,2]
[319508181,1710813043831,-500.0,0.00020997,2]
[319508183,1710813043840,-329.65800879,0.00020997,2]
[319508185,1710813043849,-503.96054317,0.00020997,2]